Workbook

Sheet planilha orçamento PB
A2: PREFEITURA MUNICIPAL DE PORTO ALEGRE
A4: DEPARTAMENTO MUNICIPAL DE LIMPEZA URBANA
A5: SERVIÇO: CONTRATAÇÃO DE ESTUDOS E SERVIÇOS TÉCNICOS PARA A ESCOLHA DE ROTA TECNOLÓGICA E PROJETOS DE ENGENHARIA DE UNIDADES DE TRATAMENTO DE RESÍDUOS SÓLIDOS
A8: Processo Eletrônico: 20.17.000001990-5
A9: ORÇAMENTO
A11: Referência: Novembro 2020 | H11: Porto Alegre, 19 de novembro de 2020.
A13: Item | B13: Serviço | C13: Referência | D13: Unidade | E13: Valor unitário R$ | F13: Quantidade | G13: Valor semestral | H13: Valor do item (R$)
A14: 1 | B14: Plano de trabalho | H14: =H15 -> 92887.8696
A15: 1.1 | B15: Plano de Trabalho e Cronograma | D15: Relatório | E15: 92887.8696 | F15: 1 | G15: =#REF!*E15 ->  | H15: =F15*E15 -> 92887.8696
A16: 2 | B16: Diagnóstico e análise de demanda | H16: =SUM(H17:H21) -> 1300430.174
A17: 2.1 | B17: Relatório Diagnóstico Técnico-Operacional do Sistema de Manejo de Resíduos Sólidos | D17: Relatório | E17: 189997.9151 | F17: 1 | G17: 0 | H17: =F17*E17 -> 189997.9151
A18: 2.2 | B18: Relatório Análise de Implementação de Novas Tecnologias e Rotas Tecnológicas | D18: Relatório | E18: 325107.5436 | F18: 1 | G18: 0 | H18: =F18*E18 -> 325107.5436
A19: 2.3 | B19: Relatório Análise de Aspectos Socioambientais | D19: Relatório | E19: 230108.5861 | F19: 1 | G19: 0 | H19: 230108.5861
A20: 2.4 | B20: Relatório Análise de Estudo de Demanda | D20: Relatório | E20: 230108.5861 | F20: 1 | G20: 0 | H20: 230108.5861
A21: 2.5 | B21: Relatório Análise de Econômico-Fincanceira Preliminar | D21: Relatório | E21: 325107.5436 | F21: 1 | G21: 0 | H21: 325107.5436
A22: 3 | B22: Definição da rota tecnológica e área potenciais | H22: =SUM(H23:H25) -> 1161098.37
A23: 3.1 | B23: Relatório Avaliação Rotas Tecnológicas Aplicáveis | D23: Relatório | E23: 464439.348 | F23: 1 | G23: 0 | H23: =F23*E23 -> 464439.348
A24: 3.2 | B24: Relatório Consolidação da Rota Tecnológica | D24: Relatório | E24: 232219.674 | F24: 1 | G24: 0 | H24: =F24*E24 -> 232219.674
A25: 3.3 | B25: Relatório Estudo e Análise de Áreas Potenciais | D25: Relatório | E25: 464439.348 | F25: 1 | G25: 0 | H25: 464439.348
A26: 4 | B26: Projetos básicos | H26: =H27 -> 1300430.174
A27: 4.1 | B27: Elaboração dos Projetos Básicos | D27: Projeto | E27: 1300430.174 | F27: 1 | G27: 0 | H27: =F27*E27 -> 1300430.174
A28: 5 | B28: TRs para contratação dos projetos executivos | H28: =H29 -> 789546.8916
A29: 5.1 | B29: Elaboração de Termos de Referência (TRs) para Projetos Executivos | D29: Termo | E29: 789546.8916 | F29: 1 | G29: =#REF!*E29 ->  | H29: =F29*E29 -> 789546.8916
B30: TOTAL DOS SERVIÇOS | H30: =SUM(H14+H16+H22+H26+H28) -> 4644393.48

Sheet Cronograma Físico-Financeiro
A1: PREFEITURA MUNICIPAL DE PORTO ALEGRE
A3: Processo Eletrônico: XXXX | B3: DEPARTAMENTO MUNICIPAL DE LIMPEZA URBANA | Z3: ='planilha orçamento PB'!H11 -> Porto Alegre, 19 de novembro de 2020.
B4: ='planilha orçamento PB'!A5 -> SERVIÇO: CONTRATAÇÃO DE ESTUDOS E SERVIÇOS TÉCNICOS PARA A ESCOLHA DE ROTA TECNOLÓGICA E PROJETOS DE ENGENHARIA DE UNIDADES DE TRATAMENTO DE RESÍDUOS SÓLIDOS
B7: ='planilha orçamento PB'!A8 -> Processo Eletrônico: 20.17.000001990-5
B9: CRONOGRAMA FÍSICO FINANCEIRO
A13: DISCRIMINAÇÃO | C13: Custo Total (R$) | D13: Mês 1 | F13: Mês 2 | H13: Mês 3 | J13: Mês 4 | L13: Mês 5 | N13: Mês 6 | P13: Mês 7 | R13: Mês 8 | T13: Mês 9 | V13: Mês 10 | X13: Mês 11 | Z13: Mês 12 | AB13: Mês 12 | AD13: Mês 14 | AF13: Mês 15 | AH13: Mês 16 | AJ13: Mês 17 | AL13: Mês 18 | AN13: Mês 19 | AP13: Mês 20 | AR13: Mês 21 | AT13: Mês 22 | AV13: Mês 23 | AX13: Mês 24
D14: Custo (R$) | E14: % | F14: Custo (R$) | G14: % | H14: Custo (R$) | I14: % | J14: Custo (R$) | K14: % | L14: Custo (R$) | M14: % | N14: Custo (R$) | O14: % | P14: Custo (R$) | Q14: % | R14: Custo (R$) | S14: % | T14: Custo (R$) | U14: % | V14: Custo (R$) | W14: % | X14: Custo (R$) | Y14: % | Z14: Custo (R$) | AA14: % | AB14: Custo (R$) | AC14: % | AD14: Custo (R$) | AE14: % | AF14: Custo (R$) | AG14: % | AH14: Custo (R$) | AI14: % | AJ14: Custo (R$) | AK14: % | AL14: Custo (R$) | AM14: % | AN14: Custo (R$) | AO14: % | AP14: Custo (R$) | AQ14: % | AR14: Custo (R$) | AS14: % | AT14: Custo (R$) | AU14: % | AV14: Custo (R$) | AW14: % | AX14: Custo (R$) | AY14: %
A15: 1 | B15: ='planilha orçamento PB'!B14 -> Plano de trabalho
A16: 1.1 | B16: ='planilha orçamento PB'!B15 -> Plano de Trabalho e Cronograma | C16: ='planilha orçamento PB'!H15 -> 92887.8696 | D16: =C16 -> 92887.8696 | E16: =D16/$C$16 -> 1
A17: 2 | B17: ='planilha orçamento PB'!B16 -> Diagnóstico e análise de demanda
A18: 2.1 | B18: ='planilha orçamento PB'!B17 -> Relatório Diagnóstico Técnico-Operacional do Sistema de Manejo de Resíduos Sólidos | C18: ='planilha orçamento PB'!H17 -> 189997.9151 | F18: =C18 -> 189997.9151 | G18: =F18/C18 -> 1
A19: 2.2 | B19: Plantio, adubação e manutenção de mudas (*ETLP, Aterro Norte, Extrema) | C19: ='planilha orçamento PB'!#REF! -> 
A20: 3.1 | B20: ='planilha orçamento PB'!B18 -> Relatório Análise de Implementação de Novas Tecnologias e Rotas Tecnológicas | C20: ='planilha orçamento PB'!H18 -> 325107.5436 | N20: =C20 -> 325107.5436 | O20: =N20/$C$20 -> 1
A21: 3.2 | B21: ='planilha orçamento PB'!B19 -> Relatório Análise de Aspectos Socioambientais | C21: ='planilha orçamento PB'!H19 -> 230108.5861 | P21: =C21 -> 230108.5861 | Q21: 1
A22: 3.3 | B22: ='planilha orçamento PB'!B20 -> Relatório Análise de Estudo de Demanda | C22: ='planilha orçamento PB'!H20 -> 230108.5861 | P22: =C22 -> 230108.5861 | Q22: 1
A23: 4.1 | B23: ='planilha orçamento PB'!B21 -> Relatório Análise de Econômico-Fincanceira Preliminar | C23: ='planilha orçamento PB'!H21 -> 325107.5436 | P23: =C23 -> 325107.5436 | Q23: 1
A24: 3 | B24: ='planilha orçamento PB'!B22 -> Definição da rota tecnológica e área potenciais
A25: 3.1 | B25: ='planilha orçamento PB'!B23 -> Relatório Avaliação Rotas Tecnológicas Aplicáveis | C25: ='planilha orçamento PB'!H23 -> 464439.348 | AB25: =C25 -> 464439.348 | AC25: 1
A26: 3.1 | B26: ='planilha orçamento PB'!B24 -> Relatório Consolidação da Rota Tecnológica | C26: ='planilha orçamento PB'!H24 -> 232219.674 | AB26: =C26 -> 232219.674 | AC26: 1
A27: 3.1 | B27: ='planilha orçamento PB'!B25 -> Relatório Estudo e Análise de Áreas Potenciais | C27: ='planilha orçamento PB'!H25 -> 464439.348 | AD27: =C27 -> 464439.348 | AE27: 1
A28: 4 | B28: ='planilha orçamento PB'!B26 -> Projetos básicos
A29: 4.1 | B29: ='planilha orçamento PB'!B27 -> Elaboração dos Projetos Básicos | C29: ='planilha orçamento PB'!H27 -> 1300430.174 | AP29: =C29 -> 1300430.174 | AQ29: 1
A30: 5 | B30: ='planilha orçamento PB'!B28 -> TRs para contratação dos projetos executivos
A31: 5.1 | B31: ='planilha orçamento PB'!B29 -> Elaboração de Termos de Referência (TRs) para Projetos Executivos | C31: ='planilha orçamento PB'!H29 -> 789546.8916 | AX31: =C31 -> 789546.8916 | AY31: 1
A32: TOTAL | C32: =C16+C18+C20+C21+C22+C23+C25+C26+C27+C29+C31 -> 4644393.48 | D32: =SUM(D16:D31) -> 92887.8696 | E32: =D32/$C$32 -> 0.02 | F32: =SUM(F16:F31) -> 189997.9151 | G32: =F32/$C$32 -> 0.04090909091 | H32: =SUM(H16:H31) -> 0 | I32: =H32/$C$32 -> 0 | J32: =SUM(J16:J31) -> 0 | K32: =J32/$C$32 -> 0 | L32: =SUM(L16:L31) -> 0 | M32: =L32/$C$32 -> 0 | N32: =SUM(N16:N31) -> 325107.5436 | O32: =N32/$C$32 -> 0.07 | P32: =SUM(P16:P31) -> 785324.7157 | Q32: =P32/$C$32 -> 0.1690909091 | R32: =SUM(R16:R31) -> 0 | S32: =R32/$C$32 -> 0 | T32: =SUM(T16:T31) -> 0 | U32: =T32/$C$32 -> 0 | V32: =SUM(V16:V31) -> 0 | W32: =V32/$C$32 -> 0 | X32: =SUM(X16:X31) -> 0 | Y32: =X32/$C$32 -> 0 | Z32: =SUM(Z16:Z31) -> 0 | AA32: =Z32/$C$32 -> 0 | AB32: =SUM(AB16:AB31) -> 696659.022 | AC32: =AB32/$C$32 -> 0.15 | AD32: =SUM(AD16:AD31) -> 464439.348 | AE32: =AD32/$C$32 -> 0.1 | AF32: =SUM(AF16:AF31) -> 0 | AG32: =AF32/$C$32 -> 0 | AH32: =SUM(AH16:AH31) -> 0 | AI32: =AH32/$C$32 -> 0 | AJ32: =SUM(AJ16:AJ31) -> 0 | AK32: =AJ32/$C$32 -> 0 | AL32: =SUM(AL16:AL31) -> 0 | AM32: =AL32/$C$32 -> 0 | AN32: =SUM(AN16:AN31) -> 0 | AO32: =AN32/$C$32 -> 0 | AP32: =SUM(AP16:AP31) -> 1300430.174 | AQ32: =AP32/$C$32 -> 0.28 | AR32: =SUM(AR16:AR31) -> 0 | AS32: =AR32/$C$32 -> 0 | AT32: =SUM(AT16:AT31) -> 0 | AU32: =AT32/$C$32 -> 0 | AV32: =SUM(AV16:AV31) -> 0 | AW32: =AV32/$C$32 -> 0 | AX32: =SUM(AX16:AX31) -> 789546.8916 | AY32: =AX32/$C$32 -> 0.17

Sheet COTAÇÕES
A1: PREFEITURA MUNICIPAL DE PORTO ALEGRE
M2: ='planilha orçamento PB'!H11 -> Porto Alegre, 19 de novembro de 2020.
A3: ='planilha orçamento PB'!A5 -> SERVIÇO: CONTRATAÇÃO DE ESTUDOS E SERVIÇOS TÉCNICOS PARA A ESCOLHA DE ROTA TECNOLÓGICA E PROJETOS DE ENGENHARIA DE UNIDADES DE TRATAMENTO DE RESÍDUOS SÓLIDOS
A6: ='planilha orçamento PB'!A8:B8 -> Processo Eletrônico: 20.17.000001990-5
B8: COTAÇÕES
A11: CÓDIGO | B11: DESCRIÇÃO | C11: FORNECEDOR | D11: CNPJ | E11: CONTATO | F11: TELEFONE | G11: DATA DA COTAÇÃO | H11: VALOR DA COTAÇÃO (R$) | I11: DATA DA CORREÇÃO DA COTAÇÃO | J11: VALOR DA COTAÇÃO CORRIGIDA (R$) (Nota 5) | K11: MEDIANA (R$) | L11: MÉDIA (R$) | M11: VALOR ADOTADO (R$)
A12: 1 | B12: Estudo e serviços técnicos rota tecnógica RSU e projetos básicos
A13: 1 | B13: Realização de serviços técncios para a realização de estudos e projetos para a modernização, manutenção e operação integrada do sitema de manejo de resíduos sólidos urbanos, no município de Porto Alegre – RS | C13: Contrato FEP-Caixa e Município de Teresina (PI) (Nota 2) | D13: Ver Nota 1 | E13: Ver Nota 1 | F13: Ver Nota 1 | G13: Abril de 2018 | H13: 4228328.89 | I13: Outubro de 2020 | J13: 4644393.48 | K13: =MEDIAN(J13:J17) -> 4644393.48 | L13: =AVERAGE(J13:J17) -> 5331808.867 | M13: =IF(K13<L13,K13,L13) -> 4644393.48
C16: Pregão eletrônico AARH n° 45/2018 - BNDES para São Paulo (SP) (Nota 3) | D16: Ver Nota 1 | E16: Ver Nota 1 | F16: Ver Nota 1 | G16: Novembro de 2018 | H16: 6780000 | I16: Outubro de 2020 | J16: 7224273.73
C17: Contrato FEP-Caixa e Município de Bauru (SP) (Nota 4) | D17: Ver Nota 1 | E17: Ver Nota 1 | F17: Ver Nota 1 | G17: Abril de 2018 | H17: 3757066.67 | I17: Outubro de 2020 | J17: 4126759.39
B19: Nota:
B20: 1. Pelo inedistismo deste tipo de contratação de estudo sobre rotas tecnológicas, foram buscados contratos e editais similares em outros municípios para realização da cotação e estimativa de valores.
B21: Por isso, na tabela acima, não constam CNPJ, contato nem telefone de contatos.
B22: 2. Comprovação de valor no contrato no SEI 12250931.
B23: 3. Comprovação de valor no contrato no SEI 12250945.
B24: 4. Comprovação de valor no contrato no SEI 12250968.
B25: 5. Valores corrigidos segundo informação da DF-DMLU, em SEI 12251446.
C28: Nota da DF-DMLU:
C29: Valores artualizados pelo IPCA/IBGE, considerando ser o índice utilizado pelo Município para correção de valores, tais como, por exemplo,
C30: o art. 49, II, da Lei Complementar 881/20, que dispõe sobre as normas de finanças públicas no âmbito do Município de Porto Alegre.
C31: Ressaltamos quanto à alteração das datas, para constar o mês invés do dia, por entendermos desnecessário a utilização do cálculo pro rata para essas atualizações.
C32: Ademais, os valores foram atualizados até o mês 10/2020, considerando ser o último índice disponível.
A55: Tabela SICRO - referencia Janeiro 2020
A57: 4413989 Plantio de mudas arbóreas com porte de 30 a 80 cm em covas de 0,60 x 0,60 x 0,60 m un 22,93

Sheet orcamento preliminar (hidden)
A2: Item | B2: Serviço | C2: Referência | D2: Unidade | E2: Valor unitário R$ | F2: Quantidade | G2: Quantidade total | H2: Valor total
A3: 1 | B3: Amostragens e Análises Fisico-químicas e Microbiológicas
A4: 2.1 | B4: Amostragem
A5: 2.1.1 | B5: Coleta de amostras de águas subterrâneas - poços tubulares (20 poços) | C5: Pregão São Leopoldo | D5: Unidade | E5: 423.03 | F5: 16 | G5: =(10*2*5)+(6*4*5) -> 220 | H5: =E5*G5 -> 93066.6
A6: 2.1.2 | B6: Coleta de amostras de águas superficiais - açudes, arroios, nascentes | C6: Pregão São Leopoldo | D6: Unidade | E6: 716.62 | F6: 6 | G6: =(3*2*5)+(3*4*5) -> 90 | H6: =E6*G6 -> 64495.8
A7: 2.1.3 | B7: Coleta de amostras de efluentes (brutos, tratados, lixiviados) - tanques, lagoas | C7: Pregão São Leopoldo | D7: Unidade | E7: 713.3 | F7: 10 | G7: =10*2*5 -> 100 | H7: =E7*G7 -> 71330
A8: 2.1.4 | B8: Coleta de amostras de solo (composto orgânico) - leiras de compostagem | C8: Pregão São Leopoldo | D8: Unidade | E8: 713.3 | F8: 12 | G8: =1*12*5 -> 60 | H8: =E8*G8 -> 42798
A9: 2.2 | B9: Relatório Técnico de Amostragem e Monitoramento Fisico-químico e Bacteriológico | C9: PE 106/2018 | D9: Unidade | E9: 2100 | G9: =(4*5*1)+(2*5*2) -> 40 | H9: =G9*E9 -> 84000
G10: total item 2 | H10: =SUM(H5:H9) -> 355690.4
A12: 2.2 a | B12: Análises Físico-Químicas e Microbiológicas em amostras Líquidas
A13: 2.2.1 | B13: Acidez | C13: cotação | D13: Unidade | F13: 4 | G13: =F13*4*5 -> 80
A14: 2.2.2 | B14: Ácidos graxos voláteis | C14: cotação | D14: Unidade | F14: 17 | G14: =F14*4*5 -> 340
A15: 2.2.3 | B15: Alcalinidade, | C15: cotação | D15: Unidade | F15: 30 | G15: =(13*4*5)+(17*4*5) -> 600
A16: 2.2.4 | B16: Alumínio | C16: cotação | D16: Unidade | F16: 32 | G16: =(15*4*5)+(17*4*5) -> 640
A17: 2.2.5 | B17: Bario | C17: cotação | D17: Unidade | F17: 4 | G17: =F17*4*5 -> 80
A18: 2.2.6 | B18: Cádmio | C18: cotação | D18: Unidade | F18: 32 | G18: =G16 -> 640
A19: 2.2.7 | B19: Cálcio | C19: cotação | D19: Unidade | F19: 13 | G19: =13*4*5 -> 260
A20: 2.2.8 | B20: Chumbo, | C20: cotação | D20: Unidade | F20: 32 | G20: =G18 -> 640
A21: 2.2.9 | B21: cianetos | C21: cotação | D21: Unidade | F21: 4 | G21: =G17 -> 80
A22: 2.2.10 | B22: Cloretos, | C22: cotação | D22: Unidade | F22: 13 | G22: =G19 -> 260
A23: 2.2.11 | B23: Cobre | C23: cotação | D23: Unidade | F23: 32 | G23: =G20 -> 640
A24: 2.2.12 | B24: Coliformes Termotolerantes | C24: cotação | D24: Unidade | F24: 32 | G24: =G23 -> 640
A25: 2.2.13 | B25: Coliformes Totais, | C25: cotação | D25: Unidade | F25: 32 | G25: =G24 -> 640
A26: 2.2.14 | B26: Condutividade Elétrica, | C26: cotação | D26: Unidade | F26: 32 | G26: =G25 -> 640
A27: 2.2.15 | B27: Cromo, | C27: cotação | D27: Unidade | F27: 30 | G27: =G15 -> 600
A28: 2.2.16 | B28: DBO5, | C28: cotação | D28: Unidade | F28: 32 | G28: =G26 -> 640
A29: 2.2.17 | B29: DQO, | C29: cotação | D29: Unidade | F29: 32 | G29: =G28 -> 640
A30: 2.2.18 | B30: Fenóis | C30: cotação | D30: Unidade | F30: 4 | G30: =G17 -> 80
A31: 2.2.19 | B31: Ferro dissolvido, | C31: cotação | D31: Unidade | F31: 13 | G31: =G22 -> 260
A32: 2.2.20 | B32: Ferro total, | C32: cotação | D32: Unidade | F32: 32 | G32: =G29 -> 640
A33: 2.2.21 | B33: fosfato total | C33: cotação | D33: Unidade | F33: 4 | G33: =G30 -> 80
A34: 2.2.22 | B34: Fósforo, | C34: cotação | D34: Unidade | F34: 30 | G34: =G27 -> 600
A35: 2.2.23 | B35: Magnésio | C35: cotação | D35: Unidade | F35: 13 | G35: =G31 -> 260
A36: 2.2.24 | B36: Manganês dissolvido, | C36: cotação | D36: Unidade | F36: 13 | G36: =G31 -> 260
A37: 2.2.25 | B37: Manganês total, | C37: cotação | D37: Unidade | F37: 30 | G37: =G27 -> 600
A38: 2.2.26 | B38: Mercúrio, | C38: cotação | D38: Unidade | F38: 32 | G38: =G29 -> 640
A39: 2.2.27 | B39: Níquel, | C39: cotação | D39: Unidade | F39: 32 | G39: =G29 -> 640
A40: 2.2.28 | B40: Nitratos | C40: cotação | D40: Unidade | F40: 19 | G40: =(2*2*5)+(17*4*5) -> 360
A41: 2.2.29 | B41: Nitrogênio Amoniacal, | C41: cotação | D41: Unidade | F41: 30 | G41: =G37 -> 600
A42: 2.2.30 | B42: Nitrogênio Kjedhal | C42: cotação | D42: Unidade | F42: 17 | G42: =F42*4*5 -> 340
A43: 2.2.31 | B43: Nitrogenio organico | C43: cotação | D43: Unidade | F43: 4 | G43: =G30 -> 80
A44: 2.2.32 | B44: Nitrogênio total, | C44: cotação | D44: Unidade | F44: 13 | G44: =G31 -> 260
A45: 2.2.33 | B45: Óleos e graxas mineral | C45: cotação | D45: Unidade | F45: 4 | G45: =G33 -> 80
A46: 2.2.34 | B46: pH, | C46: cotação | D46: Unidade | F46: 32 | G46: =G39 -> 640
A47: 2.2.35 | B47: Potássio | C47: cotação | D47: Unidade | F47: 13 | G47: =G44 -> 260
A48: 2.2.36 | B48: Potencial redox | C48: cotação | D48: Unidade | F48: 17 | G48: =G42 -> 340
A49: 2.2.37 | B49: sódio | C49: cotação | D49: Unidade | F49: 13 | G49: =G44 -> 260
A50: 2.2.38 | B50: Sólidos Sedimentáveis, | C50: cotação | D50: Unidade | F50: 13 | G50: =G44 -> 260
A51: 2.2.39 | B51: Sólidos Suspensos, | C51: cotação | D51: Unidade | F51: 13 | G51: =G44 -> 260
A52: 2.2.40 | B52: Sólidos Totais | C52: cotação | D52: Unidade | F52: 19 | G52: =G40 -> 360
A53: 2.2.41 | B53: Sólidos totais fixos | C53: cotação | D53: Unidade | F53: 17 | G53: =G48 -> 340
A54: 2.2.42 | B54: Substancias Tensoativas | C54: cotação | D54: Unidade | F54: 4 | G54: =G45 -> 80
A55: 2.2.43 | B55: Sulfatos, | C55: cotação | D55: Unidade | F55: 17 | G55: =G42 -> 340
A56: 2.2.44 | B56: Sulfetos | C56: cotação | D56: Unidade | F56: 30 | G56: =G41 -> 600
A57: 2.2.45 | B57: Temperatura | C57: cotação | D57: Unidade | F57: 13 | G57: =G44 -> 260
A58: 2.2.46 | B58: Turbidez | C58: cotação | D58: Unidade | F58: 2 | G58: =F58*2*5 -> 20
A59: 2.2.47 | B59: Zinco | C59: cotação | D59: Unidade | F59: 32 | G59: =G46 -> 640
A61: 2.3 b | B61: Análises Físico-Químicas e Microbiológicas em Amostras Sólidas
A62: 2.3.1 | B62: Análise granulométrica e caracterização dos perfis de solo UNID. | C62: cotação | D62: Unidade | F62: 6
A63: 2.3.2 | B63: Arsenio | C63: cotação | D63: Unidade | F63: 1 | G63: =12*1*5 -> 60
A64: 2.3.3 | B64: Cádmio | C64: cotação | D64: Unidade | F64: 1 | G64: =12*1*5 -> 60
A65: 2.3.4 | B65: Carbono orgânico | C65: cotação | D65: Unidade | F65: 1 | G65: 60
A66: 2.3.5 | B66: Chumbo | C66: cotação | D66: Unidade | F66: 1 | G66: 60
A67: 2.3.6 | B67: Coliformes Termotolerantes | C67: cotação | D67: Unidade | F67: 1 | G67: 60
A68: 2.3.7 | B68: Cromo | C68: cotação | D68: Unidade | F68: 1 | G68: 60
A69: 2.3.8 | B69: Mercúrio | C69: cotação | D69: Unidade | F69: 1 | G69: 60
A70: 2.3.9 | B70: Níquel | C70: cotação | D70: Unidade | F70: 1 | G70: 60
A71: 2.3.10 | B71: Ovos viáveis de helmintos | C71: cotação | D71: Unidade | F71: 1 | G71: 60
A72: 2.3.11 | B72: Permeabilidade de solo in situ | C72: cotação | D72: Unidade | F72: 6
A73: 2.3.12 | B73: pH | C73: cotação | D73: Unidade | F73: 1 | G73: 60
A74: 2.3.13 | B74: Porosidade efetiva do solo UNID. | C74: cotação | D74: Unidade | F74: 6
A75: 2.3.14 | B75: Porosidade total do solo UNID. | C75: cotação | D75: Unidade | F75: 6
A76: 2.3.15 | B76: Relação C/N | C76: cotação | D76: Unidade | F76: 1 | G76: =12*1*5 -> 60
A77: 2.3.16 | B77: salmonella sp | C77: cotação | D77: Unidade | F77: 1 | G77: 60
A78: 2.3.17 | B78: Selênio | C78: cotação | D78: Unidade | F78: 1 | G78: 60
A79: 2.3.18 | B79: Umidade | C79: cotação | D79: Unidade | F79: 1 | G79: 60
A81: 3 | B81: Investigação Confirmatória
A82: 3.1 | B82: Modelo Conceitual
A83: 3.1.1 | B83: Identificação da área, levantamento de informações preliminares e elaboração de plano de amostragem | C83: PE 205/2019 | D83: dia | E83: =6443.34/60*8 -> 859.112 | G83: 20 | H83: =G83*E83 -> 17182.24
A85: 3.2 | B85: Levantamento planialtimétrico
A86: 3.2.1 | B86: Planta 1:1000 - detalhamento infraestrura implantada, posicionamento | C86: PE 205/2019 | D86: dia | E86: =5976.54/64*8 -> 747.0675 | G86: 15 | H86: =G86*E86 -> 11206.0125
A87: 3.2.2 | B87: Planta 1:2000 - detalhamento entorno: raio 500 m das divisas | C87: PE 205/2019 | D87: dia | E87: =5976.54/64*8 -> 747.0675 | G87: 15 | H87: =G87*E87 -> 11206.0125
A88: 3.2.3 | B88: Planta 1:500 - perfis e detalhamento de áreas de disposição de resíduos | C88: PE 205/2019 | D88: dia | E88: 747.0675 | G88: 15 | H88: 11206.0125
A90: 3.3 | B90: Estudo hidrogeológico
A91: 3.3.1 | B91: Estudo de vulnerabilidade de aquífero | C91: PE 205/2019 | D91: h | E91: =5976.54/64 -> 93.3834375 | G91: 20 | H91: =G91*E91 -> 1867.66875
A92: 3.3.2 | B92: Caracterização de corpo receptor | C92: PE 205/2019 | D92: h | E92: =5976.54/64 -> 93.3834375 | G92: 20 | H92: =G92*E92 -> 1867.66875
A93: 3.3.3 | B93: Elaboração de Mapa Potenciométrico | C93: PE 205/2019 | D93: h | E93: =3788.2/50 -> 75.764 | G93: 20 | H93: 1515.28
A95: 3.4 | B95: Serviços de Perfuração e Instalação de poços de monitoramento
A96: 3.4.1 | B96: Perfuração e Implantação de poços monitoramento (ABNT NBR 15495-1:2007 e 15495-2:2009) | C96: pregão Corsan | D96: Unidade | E96: =(2540.39+1997.18)/2 -> 2268.785 | G96: =8+6 -> 14 | H96: =G96*E96 -> 31762.99
A97: 3.4.2 | B97: Relatório Técnico Construtivo dos poços | C97: pregão Corsan | D97: Unidade | E97: =((9545.52/18)+ 492.82)/2 -> 511.5633333 | G97: 14 | H97: =G97*E97 -> 7161.886667
A99: 3.5 | B99: Relatório Final de Investigação Confirmatória | C99: PE 205/2019 PE 106/2018 | D99: Unidade | E99: =(3788.2 + 4500.02)/2 -> 4144.11 | G99: 2 | H99: =G99*E99 -> 8288.22
G100: total item 3 | H100: =SUM(H83:H99) -> 103263.9917
A102: 4 | B102: Manutenção das Barreiras Vegetais
A103: 4.1 | B103: Projeto de cortinamento vegetal | C103: PE 106/2018 | D103: Unidade | E103: 2580 | G103: 1 | H103: =G103*E103 -> 2580
A104: 4.2 | B104: Plantio, adubação e manutenção de mudas | C104: PE 106/2018 | D104: dia | E104: 427 | G104: 10 | H104: =G104*E104 -> 4270
G105: total item 4 | H105: =SUM(H103:H104) -> 6850
A107: 5 | B107: Laudos de Cobertura Vegetal
A108: 5.1 | B108: Levantamento e identificação de espécies vegetais | C108: PE 106/2018 | D108: dia | E108: 427 | G108: 15 | H108: =G108*E108 -> 6405
A109: 5.2 | B109: Laudo de Cobertura Vegetal | C109: PE 106/2018 | D109: Unidade | E109: 7800 | G109: 2 | H109: =G109*E109 -> 15600
G110: total item 5 | H110: =SUM(H108:H109) -> 22005
A112: 6 | B112: Laudos de Fauna
A113: 6.1 | B113: Levantamento e identificação de fauna | C113: PE 106/2018 | D113: dia | E113: 427 | G113: 10 | H113: =G113*E113 -> 4270
A114: 6.2 | B114: Laudo de fauna | C114: PE 106/2018 | D114: Unidade | E114: 2568.38 | G114: 1 | H114: =G114*E114 -> 2568.38
G115: total item 6 | H115: =SUM(H113:H114) -> 6838.38
A117: 7 | B117: Relatórios Técnicos de Monitoramento
A118: 7.1 | B118: Relatório Trimestral de Monitoramento Ambiental | C118: PE 106/2018 | D118: Unidade | E118: 1758 | G118: 36 | H118: =G118*E118 -> 63288
G119: total item 7 | H119: =SUM(H118) -> 63288
B121: Total dos Serviços | H121: =H119+H115+H110+H105+H100+H10+#REF! -> 
